bitfinex-derivatives/quotes_BTCF0:USTF0_20250106
["timestamp","ask_amount","ask_price","bid_price","bid_amount"]
[1736128501292,0.1,98825.0,98824.0,0.0096599]
[1736128501494,0.1,98825.0,98824.0,0.3608]
[1736128502099,0.1,98825.0,98815.0,0.14752381]
[1736128502298,0.0585,98824.0,98817.0,0.04555]
[1736128503014,0.0585,98824.0,98815.0,0.14752381]
[1736128503193,0.0548,98823.0,98815.0,0.15712851]
[1736128503509,0.0548,98823.0,98822.0,0.3608]
[1736128504304,0.0585,98824.0,98823.0,0.045547]
[1736128507102,0.0585,98824.0,98815.0,0.39642001]
[1736128507605,0.0585,98824.0,98823.0,0.3608]
[1736128507904,0.1,98825.0,98823.0,0.406347]
[1736128510517,0.09209012,98825.0,98823.0,0.406347]
[1736128512400,0.09209012,98825.0,98823.0,0.6456385]
[1736128512994,0.03741687,98825.0,98823.0,0.6456385]
[1736128515210,0.03741687,98825.0,98823.0,0.406347]
[1736128517815,1e-08,98825.0,98823.0,0.406347]
[1736128518900,0.05546,98833.0,98832.0,0.045543]
[1736128519103,0.05546,98833.0,98832.0,0.406343]
[1736128522117,0.05546,98833.0,98832.0,0.99406101]
[1736128522618,0.05546,98833.0,98832.0,1.0035911]
[1736128523520,0.05546,98833.0,98832.0,0.70447673]
[1736128527925,0.05546,98833.0,98828.0,0.35893725]
[1736128527926,0.05546,98833.0,98828.0,0.24333725]
[1736128528114,0.3608,98829.0,98828.0,0.24333725]
[1736128528817,0.3608,98829.0,98828.0,0.00463725]
[1736128529023,0.045546,98825.0,98824.0,6.25052]
[1736128529220,0.045546,98825.0,98824.0,6.25]
[1736128529621,0.045546,98825.0,98824.0,6.25968788]
[1736128530233,0.045546,98825.0,98824.0,6.25]
[1736128530521,0.406346,98825.0,98824.0,6.25]
[1736128530925,0.706346,98825.0,98824.0,6.25]
[1736128531934,0.775746,98825.0,98824.0,3.92200001]
[1736128532224,0.475746,98825.0,98824.0,3.92200001]
[1736128532431,0.0694,98825.0,98824.0,3.96754601]
[1736128532724,0.775746,98825.0,98824.0,3.92200001]
[1736128533233,0.8249732,98825.0,98824.0,3.92200001]
[1736128533523,0.8249732,98825.0,98824.0,3.70931039]
[1736128534026,0.775746,98825.0,98824.0,3.70931039]
[1736128535930,0.775746,98825.0,98824.0,3.62127539]
[1736128536130,0.7854455,98825.0,98824.0,3.62127539]
[1736128537023,0.7854455,98825.0,98824.0,3.32316039]
[1736128537024,0.8346767,98825.0,98824.0,3.32316039]
[1736128537221,1.3454767,98825.0,98824.0,0.85942611]
[1736128537523,1.3454767,98825.0,98824.0,0.59164282]
[1736128537524,1.1954767,98825.0,98824.0,0.59164282]
[1736128538332,1.3554767,98825.0,98824.0,8.2e-07]
[1736128538933,1.1954767,98825.0,98824.0,8.2e-07]
[1736128539931,0.8954767,98825.0,98824.0,8.2e-07]
[1736128540231,0.045549,98818.0,98809.0,0.045553]
[1736128540430,0.3608,98810.0,98809.0,0.045553]
[1736128541629,0.3608,98810.0,98801.0,0.045557]
[1736128541828,0.3608,98802.0,98801.0,0.045557]
[1736128542028,0.3608,98802.0,98770.0,0.00011658]
[1736128542224,0.09832058,98784.0,98782.0,0.045565]
[1736128542431,0.3608,98785.0,98782.0,0.045565]
[1736128542736,0.3608,98785.0,98779.0,0.00052]
[1736128542925,0.3608,98785.0,98770.0,0.00972622]
[1736128543128,0.3608,98785.0,98771.0,0.96792]
[1736128543426,0.3608,98785.0,98783.0,0.045565]
[1736128543631,0.406365,98785.0,98775.0,0.045569]
[1736128544032,0.3608,98777.0,98775.0,0.045569]
[1736128544333,0.406368,98777.0,98770.0,0.00972622]
[1736128544540,0.04557,98774.0,98770.0,0.00972622]
[1736128544935,0.04557,98774.0,98770.0,0.00011658]
[1736128546134,0.045571,98772.0,98770.0,0.00011658]
[1736128546338,0.0757,98776.0,98760.0,0.045576]
[1736128546530,0.3608,98765.0,98760.0,0.045576]
[1736128546730,0.045575,98763.0,98753.0,0.0805]
[1736128547034,0.045577,98759.0,98740.0,0.3608]
[1736128547239,0.045577,98759.0,98743.0,0.045583]
[1736128547539,0.045582,98748.0,98738.0,0.045586]
[1736128547838,0.045582,98748.0,98737.0,0.1532]
[1736128547839,0.3608,98746.0,98731.0,0.3608]
[1736128548139,0.045583,98744.0,98722.0,0.0734]
[1736128548437,0.3608,98734.0,98728.0,0.60712]
[1736128549444,0.3608,98746.0,98738.0,0.045586]
[1736128549632,0.3608,98746.0,98745.0,0.60712]
[1736128550035,0.3608,98746.0,98738.0,0.045586]
[1736128550229,0.3608,98746.0,98743.0,0.60712]
[1736128550434,0.3608,98746.0,98744.0,0.1487]
[1736128551136,0.2228,98746.0,98745.0,0.60712]
[1736128552645,0.2228,98746.0,98744.0,0.1487]
[1736128553139,0.045578,98756.0,98745.0,0.60712]
[1736128553341,0.3608,98757.0,98753.0,0.60712]
[1736128557046,0.3608,98757.0,98745.0,0.09539585]
[1736128557047,0.3608,98757.0,98745.0,0.0859]
[1736128557235,0.3608,98757.0,98752.0,0.60712]
[1736128557430,0.045582,98748.0,98745.0,0.08642]
[1736128557730,0.045581,98750.0,98745.0,0.69302]
[1736128558435,0.045582,98748.0,98745.0,0.0859]
[1736128559348,0.045582,98748.0,98746.0,0.60712]
[1736128560236,0.045582,98748.0,98747.0,0.60712]
[1736128561937,0.406378,98757.0,98747.0,0.60712]
[1736128562342,0.3608,98757.0,98747.0,0.60712]
[1736128563240,0.3608,98757.0,98745.0,0.0859]
[1736128563544,0.3608,98757.0,98756.0,0.652698]
[1736128563846,0.09048453,98762.0,98756.0,0.652698]
[1736128564046,0.09048453,98762.0,98761.0,0.60712]
[1736128564347,0.09048453,98765.0,98761.0,0.60712]
[1736128564551,0.045575,98762.0,98756.0,0.00052]
[1736128564740,0.045575,98762.0,98756.0,0.6]
[1736128564940,0.045575,98762.0,98761.0,0.60712]
[1736128566241,0.406375,98762.0,98761.0,0.60712]
[1736128566641,0.3608,98762.0,98746.0,0.3608]
[1736128566950,0.045582,98748.0,98746.0,0.60712]
[1736128567151,0.045582,98748.0,98747.0,0.60712]
[1736128567645,0.045582,98748.0,98744.0,0.0734]
[1736128567840,0.045583,98745.0,98744.0,0.0734]
[1736128569337,0.045586,98739.0,98738.0,0.3608]
[1736128569749,0.09072346,98752.0,98738.0,1.56792]
[1736128569943,0.09072346,98752.0,98751.0,0.60712]
[1736128570149,0.12064747,98759.0,98758.0,0.045577]
[1736128570451,0.00979517,98779.0,98777.0,0.045568]
[1736128570761,0.25310568,98800.0,98787.0,0.045563]
[1736128571057,0.25258567,98800.0,98795.0,0.60712]
[1736128571246,0.20702767,98800.0,98795.0,0.96792]
[1736128571554,0.20702767,98800.0,98799.0,0.60712]
[1736128572051,0.0831,98809.0,98800.0,0.045557]
[1736128572246,0.045552,98812.0,98804.0,0.60712]
[1736128573650,0.00151972,98813.0,98802.0,0.045557]
[1736128573852,0.406353,98810.0,98802.0,0.045557]
[1736128574059,0.406353,98810.0,98804.0,0.60712]
[1736128575355,0.406353,98810.0,98802.0,0.045557]
[1736128575858,0.406353,98810.0,98793.0,0.045561]
[1736128575859,0.045556,98804.0,98793.0,0.045561]
[1736128576051,0.045556,98804.0,98797.0,0.60712]
[1736128577050,0.3608,98801.0,98797.0,0.60712]
[1736128577244,0.3608,98801.0,98786.0,0.3608]
[1736128577444,0.18392058,98800.0,98786.0,0.3608]
[1736128577955,0.045564,98785.0,98784.0,0.17950341]
[1736128578151,0.3608,98792.0,98784.0,0.17950341]
[1736128578356,0.3608,98792.0,98785.0,0.60712]
[1736128578557,0.3608,98792.0,98786.0,0.60712]
[1736128578858,0.3608,98816.0,98791.0,0.96792]
[1736128579056,0.045553,98810.0,98802.0,0.3608]
[1736128579752,0.045554,98808.0,98802.0,0.3608]
[1736128580055,0.045554,98808.0,98790.0,0.3608]
[1736128580056,0.045559,98798.0,98790.0,0.3608]
[1736128580254,0.045559,98798.0,98790.0,0.6]
[1736128580555,0.045559,98798.0,98797.0,0.60712]
[1736128581257,0.045556,98805.0,98797.0,0.60712]
[1736128581461,0.3608,98808.0,98798.0,0.60712]
[1736128581953,0.045556,98804.0,98798.0,0.60712]
[1736128582151,0.045556,98804.0,98801.0,0.60712]
[1736128582355,0.045557,98803.0,98801.0,0.60712]
[1736128584047,0.3608,98808.0,98785.0,0.045564]
[1736128584247,0.045558,98799.0,98790.0,0.60712]
[1736128584858,0.045559,98796.0,98790.0,0.60712]
[1736128585453,0.45912058,98800.0,98782.0,0.3608]
[1736128585646,0.45912058,98800.0,98789.0,0.60712]
[1736128585852,0.045562,98791.0,98789.0,0.60712]
[1736128586459,0.45912058,98800.0,98782.0,0.3608]
[1736128586662,0.045563,98789.0,98786.0,0.60712]
[1736128587663,0.045563,98787.0,98786.0,0.60712]
[1736128587858,0.045563,98787.0,98782.0,0.3608]
[1736128588058,0.3608,98791.0,98782.0,0.3608]
[1736128588359,0.045565,98784.0,98782.0,0.3608]
[1736128588562,0.045565,98784.0,98783.0,0.60712]
[1736128589562,0.0927,98790.0,98783.0,0.60712]
[1736128589752,0.0927,98790.0,98787.0,0.60712]
[1736128590155,0.406362,98791.0,98787.0,0.60712]
[1736128590762,0.406362,98791.0,98789.0,0.60712]
[1736128591264,0.406362,98791.0,98790.0,0.60712]
[1736128594862,0.045562,98790.0,98783.0,0.045565]
[1736128595065,0.045563,98788.0,98787.0,0.60712]
[1736128595258,0.045563,98788.0,98783.0,0.045565]
[1736128595759,0.045565,98783.0,98774.0,0.17950341]
[1736128595963,0.3608,98781.0,98774.0,0.77950341]
[1736128596164,0.045565,98783.0,98782.0,0.60712]
[1736128597465,0.045565,98783.0,98780.0,0.045566]
[1736128598660,0.045565,98783.0,98781.0,0.60712]
[1736128598861,0.045565,98783.0,98782.0,0.60712]
[1736128599465,0.045565,98783.0,98780.0,0.045566]
[1736128599657,0.045565,98783.0,98781.0,0.60712]
[1736128599965,0.045567,98779.0,98778.0,0.17950341]
[1736128601859,0.045571,98770.0,98769.0,0.17950341]
[1736128602160,0.406371,98770.0,98769.0,0.17950341]
[1736128603362,0.3608,98770.0,98758.0,0.22508041]
[1736128603666,0.45912058,98780.0,98768.0,0.60712]
[1736128603861,0.45912058,98780.0,98772.0,0.04557]
[1736128604062,0.045569,98776.0,98772.0,0.04557]
[1736128605568,0.045569,98776.0,98775.0,0.60712]
[1736128606665,0.15159072,98792.0,98776.0,0.045568]
[1736128606666,0.09832058,98790.0,98776.0,0.045568]
[1736128606868,0.045564,98785.0,98784.0,0.60712]
[1736128608371,0.3608,98791.0,98771.0,0.17950341]
[1736128608569,0.09832058,98781.0,98775.0,0.60712]
[1736128608868,0.045568,98778.0,98775.0,0.60712]
[1736128609663,0.045569,98776.0,98775.0,0.60712]
[1736128611173,0.045569,98776.0,98775.0,1.20712]
[1736128612369,0.045569,98776.0,98775.0,0.60712]
[1736128612869,0.04557,98773.0,98772.0,0.17950341]
[1736128613065,0.04557,98773.0,98771.0,0.17950341]
[1736128613274,0.04557,98773.0,98772.0,0.60712]
[1736128615066,0.04557,98773.0,98772.0,0.6]
[1736128615375,0.04557,98773.0,98772.0,1.20712]
[1736128616478,0.04557,98773.0,98772.0,0.60712]
[1736128618078,0.40637,98773.0,98772.0,0.60712]
[1736128620581,0.3608,98773.0,98766.0,0.17950341]
[1736128620778,0.045573,98767.0,98766.0,0.77950341]
[1736128621082,0.045573,98767.0,98766.0,0.17950341]
[1736128621288,0.045573,98767.0,98766.0,0.78662341]
[1736128622177,0.045573,98767.0,98766.0,0.17950341]
[1736128622878,0.3608,98773.0,98762.0,0.17950341]
[1736128622879,0.045575,98763.0,98762.0,0.17950341]
[1736128623176,0.045575,98763.0,98762.0,0.78662341]
[1736128625681,0.045575,98763.0,98762.0,0.60712]
[1736128629888,0.3608,98773.0,98762.0,1.20712]
[1736128630092,0.3608,98773.0,98772.0,0.60712]
[1736128630489,0.3608,98773.0,98772.0,1.20712]
[1736128632388,0.3608,98773.0,98772.0,1.2167715]
[1736128635393,0.145569,98775.0,98772.0,1.2167715]
[1736128635590,0.145569,98775.0,98774.0,0.60712]
[1736128636091,0.145569,98775.0,98774.0,1.20712]
[1736128637990,0.145569,98775.0,98769.0,0.23933788]
[1736128637991,0.1,98775.0,98769.0,0.23933788]
[1736128638292,0.145569,98775.0,98774.0,0.17965525]
[1736128639388,0.145569,98775.0,98762.0,0.17965525]
[1736128639389,0.045575,98763.0,98762.0,0.17965525]
[1736128639796,0.045577,98757.0,98756.0,0.10588107]
[1736128639990,0.406377,98757.0,98756.0,7e-08]
[1736128641096,0.41006195,98757.0,98725.0,0.045592]
[1736128641298,0.3608,98731.0,98725.0,0.645592]
[1736128641686,0.3608,98731.0,98730.0,0.60712]
[1736128642086,0.3608,98731.0,98730.0,1.20712]
[1736128643193,0.3608,98731.0,98730.0,0.60712]
[1736128645193,0.406389,98731.0,98730.0,0.60712]
[1736128647402,0.045597,98715.0,98714.0,0.00151909]
[1736128647601,0.045597,98715.0,98714.0,1.20863909]
[1736128647796,0.045597,98715.0,98714.0,1.22447846]
[1736128648195,0.045597,98715.0,98714.0,0.62447846]
[1736128648692,0.045597,98715.0,98714.0,0.01735846]
[1736128649408,0.045597,98715.0,98714.0,0.01583937]
[1736128650606,0.045603,98702.0,98701.0,0.0897]
[1736128650906,0.045603,98702.0,98701.0,0.70554161]
[1736128651096,0.045603,98702.0,98701.0,1.31266161]
[1736128651497,0.045603,98702.0,98701.0,1.29682]
[1736128651690,0.3608,98705.0,98701.0,1.31266166]
[1736128651895,0.045599,98710.0,98704.0,0.60712]
[1736128652092,0.045599,98710.0,98705.0,0.01584166]
[1736128652300,0.045599,98710.0,98709.0,0.60712]
[1736128652808,0.045599,98710.0,98709.0,0.62296166]
[1736128653199,0.045599,98710.0,98709.0,0.98376166]
[1736128653504,0.045599,98710.0,98709.0,0.62296166]
[1736128656096,0.406399,98710.0,98709.0,0.62296166]
[1736128656304,0.406399,98710.0,98709.0,0.01584166]
[1736128656493,0.045603,98701.0,98700.0,0.1000962]
[1736128656698,0.045603,98701.0,98700.0,0.7000962]
[1736128656902,0.045603,98701.0,98700.0,1.3072162]
[1736128659996,0.406403,98701.0,98700.0,0.7072162]
[1736128660198,0.406403,98701.0,98700.0,0.11593852]
[1736128660702,0.406403,98701.0,98700.0,0.72305878]
[1736128661805,0.3608,98710.0,98700.0,1.32305878]
[1736128662112,0.045598,98713.0,98708.0,0.60712]
[1736128662301,0.045599,98711.0,98708.0,0.60712]
[1736128662601,0.045599,98710.0,98708.0,0.60712]
[1736128662910,0.045601,98705.0,98704.0,0.3608]
[1736128663404,0.406401,98705.0,98700.0,0.1000962]
[1736128663711,0.045603,98701.0,98700.0,0.1000962]
[1736128664005,0.045603,98701.0,98700.0,0.11593863]
[1736128665996,0.3608,98705.0,98701.0,0.045603]
[1736128666197,0.3608,98705.0,98704.0,0.60712]
[1736128667112,0.3608,98705.0,98700.0,0.1000962]
[1736128667313,0.045602,98704.0,98702.0,0.60712]
[1736128671003,0.045602,98704.0,98703.0,0.60712]
[1736128674803,0.045602,98704.0,98703.0,1.20712]
[1736128675512,0.16683042,98704.0,98703.0,1.20712]
[1736128676810,0.045602,98704.0,98703.0,1.20712]
[1736128677317,0.045603,98701.0,98700.0,0.1000962]
[1736128677518,0.045603,98701.0,98700.0,0.7072162]
[1736128678218,0.045603,98701.0,98700.0,0.72305854]
[1736128681720,0.045603,98701.0,98700.0,0.7072162]
[1736128683829,0.51289553,98705.0,98700.0,1.3072162]
[1736128684017,0.51233552,98705.0,98704.0,0.60712]
[1736128684415,0.51233552,98705.0,98704.0,1.20712]
[1736128684719,0.3608,98705.0,98704.0,1.20712]
[1736128685819,0.3608,98705.0,98704.0,1.42702]
[1736128686016,0.3608,98714.0,98704.0,1.42702]
[1736128686213,0.18153385,98717.0,98716.0,0.652716]
[1736128686618,0.18153385,98717.0,98716.0,1.252716]
[1736128686821,0.18153385,98717.0,98716.0,1.363316]
[1736128687325,0.18153385,98717.0,98716.0,1.31772]
[1736128687521,0.1670963,98718.0,98716.0,0.1106]
[1736128687719,0.045598,98712.0,98704.0,0.626822]
[1736128687918,0.09832058,98714.0,98705.0,0.112]
[1736128688219,0.045597,98714.0,98713.0,0.60712]
[1736128688827,0.045597,98714.0,98713.0,1.20712]
[1736128689324,0.1215013,98716.0,98713.0,1.252718]
[1736128689525,0.1215013,98716.0,98713.0,0.645598]
[1736128689725,0.1215013,98716.0,98715.0,0.60712]
[1736128690130,0.1215013,98716.0,98715.0,1.20712]
[1736128690520,0.1215013,98718.0,98715.0,1.20712]
[1736128690821,0.1215013,98718.0,98715.0,0.6]
[1736128691022,0.1215013,98718.0,98717.0,0.60712]
[1736128691414,0.1215013,98718.0,98717.0,1.20712]
[1736128691616,0.1215013,98718.0,98717.0,1.252716]
[1736128692028,0.1215013,98721.0,98717.0,1.252716]
[1736128692233,0.1215013,98721.0,98717.0,0.645596]
[1736128692421,0.1215013,98721.0,98720.0,0.60712]
[1736128692931,0.1215013,98721.0,98720.0,1.20712]
[1736128693334,0.4823013,98723.0,98720.0,1.20712]
[1736128693623,0.4823013,98723.0,98722.0,0.60712]
[1736128694023,0.4823013,98723.0,98722.0,1.20712]
[1736128694427,0.3608,98723.0,98722.0,1.20712]
[1736128694734,0.3608,98723.0,98722.0,1.252713]
[1736128696131,0.3608,98723.0,98722.0,1.20712]
[1736128699540,0.4823013,98723.0,98722.0,1.20712]
[1736128701834,0.4823013,98723.0,98722.0,0.60712]
[1736128703832,0.3608,98723.0,98722.0,0.60712]
[1736128705233,0.406393,98723.0,98722.0,0.60712]
[1736128706845,0.045598,98712.0,98708.0,0.01012723]
[1736128707042,0.045598,98712.0,98708.0,0.6]
[1736128707244,0.045598,98712.0,98711.0,0.60712]
[1736128707646,0.045598,98712.0,98711.0,1.20712]
[1736128708244,0.13659709,98712.0,98711.0,1.20712]
[1736128709344,0.045598,98712.0,98711.0,1.20712]
[1736128719142,0.15187663,98717.0,98711.0,1.20712]
[1736128719341,0.15187663,98717.0,98716.0,0.652716]
[1736128719536,0.18153385,98726.0,98725.0,0.045592]
[1736128719741,0.5815,98753.0,98738.0,0.045586]
[1736128719742,0.045584,98742.0,98738.0,0.045586]
[1736128719950,0.045584,98742.0,98741.0,0.3608]
[1736128720143,0.045582,98747.0,98741.0,1.013505]
[1736128720349,0.20702767,98750.0,98748.0,0.045581]
[1736128720541,0.20702767,98750.0,98749.0,0.60712]
[1736128720946,0.20702767,98750.0,98749.0,0.84632]
[1736128722050,0.045577,98757.0,98750.0,0.045581]
[1736128722244,0.045577,98757.0,98756.0,0.60712]
[1736128722742,0.045577,98757.0,98756.0,0.84632]
[1736128725754,0.045578,98756.0,98754.0,0.3608]
[1736128727447,0.09832058,98764.0,98746.0,0.23926447]
[1736128727448,0.0101791,98758.0,98746.0,0.23926447]
[1736128727651,0.045582,98748.0,98746.0,0.47846447]
[1736128727847,0.045582,98748.0,98746.0,0.2392]
[1736128728047,0.045582,98748.0,98747.0,0.60712]
[1736128728445,0.045582,98748.0,98747.0,0.84632]
[1736128734765,0.09832058,98760.0,98747.0,0.84632]
[1736128734965,0.09832058,98760.0,98757.0,0.60712]
[1736128735161,0.04558,98751.0,98747.0,0.2392]
[1736128735558,0.04558,98751.0,98750.0,0.60712]
[1736128735958,0.04558,98751.0,98750.0,0.84632]
[1736128736553,0.04558,98751.0,98742.0,0.3608]
[1736128736554,0.045584,98743.0,98742.0,0.3608]
[1736128737168,0.045584,98743.0,98742.0,0.96792]
[1736128738367,0.045584,98743.0,98742.0,0.3608]
[1736128738765,0.045584,98743.0,98727.0,0.045591]
[1736128738961,0.045588,98734.0,98726.0,0.23926447]
[1736128739364,0.045588,98734.0,98733.0,0.96792]
[1736128740274,0.045588,98734.0,98733.0,0.3608]
[1736128741364,0.045588,98734.0,98733.0,0.96792]
[1736128742172,0.045585,98742.0,98736.0,0.045587]
[1736128742373,0.045585,98742.0,98741.0,0.3608]
[1736128742575,0.045585,98742.0,98741.0,0.96792]
[1736128742772,0.045585,98742.0,98741.0,1.20712]
[1736128743880,0.045581,98750.0,98741.0,1.20712]
[1736128744066,0.045581,98750.0,98749.0,0.60712]
[1736128744474,0.045581,98750.0,98749.0,0.84632]
[1736128744674,0.09832058,98760.0,98749.0,1.20712]
[1736128744867,0.045577,98757.0,98755.0,0.60712]
[1736128745262,0.045577,98757.0,98756.0,0.60712]
[1736128745672,0.14389358,98766.0,98756.0,0.60712]
[1736128745976,0.045573,98766.0,98765.0,0.60712]
[1736128746965,0.045576,98759.0,98758.0,0.23926447]
[1736128747572,0.045576,98759.0,98758.0,0.84638447]
[1736128747877,0.045576,98759.0,98758.0,0.23926447]
[1736128748067,0.09832058,98770.0,98756.0,0.23926447]
[1736128748267,0.09832058,98770.0,98757.0,0.60712]
[1736128749163,0.045576,98760.0,98758.0,0.60712]
[1736128749469,0.045576,98760.0,98758.0,0.3608]
[1736128749668,0.09832058,98770.0,98759.0,0.60712]
[1736128749879,0.045573,98767.0,98765.0,0.60712]
[1736128750376,0.045573,98767.0,98766.0,0.60712]
[1736128750767,0.2354,98772.0,98762.0,0.23926447]
[1736128751077,0.045575,98763.0,98762.0,0.23926447]
[1736128751584,0.045575,98763.0,98758.0,0.3608]
[1736128751770,0.045575,98763.0,98758.0,0.96792]
[1736128752577,0.045575,98763.0,98762.0,0.60712]
[1736128753077,0.045575,98763.0,98762.0,0.84632]
[1736128754374,0.045571,98772.0,98762.0,0.84632]
[1736128754576,0.045571,98771.0,98768.0,0.60712]
[1736128754771,0.045572,98770.0,98768.0,0.60712]
[1736128755175,0.045572,98770.0,98769.0,0.60712]
[1736128756880,0.045574,98764.0,98763.0,0.1097]
[1736128757086,0.045574,98764.0,98763.0,0.3489]
[1736128757376,0.045574,98764.0,98763.0,0.95602]
[1736128759672,0.045574,98764.0,98763.0,0.60712]
[1736128760675,0.45912058,98773.0,98760.0,0.23926447]
[1736128760878,0.045575,98761.0,98760.0,0.23926447]
[1736128761079,0.045575,98761.0,98759.0,0.23926447]
[1736128761279,0.045575,98761.0,98759.0,0.84638447]
[1736128762282,0.045575,98761.0,98759.0,0.78657189]
[1736128763578,0.045575,98761.0,98759.0,0.60712]
[1736128764677,0.045575,98761.0,98759.0,0.78657189]
[1736128764876,0.045575,98761.0,98759.0,0.17945189]
[1736128766179,0.01025328,98762.0,98754.0,0.23926447]
[1736128766379,0.045577,98757.0,98756.0,0.60712]
[1736128769890,0.3608,98782.0,98756.0,0.84632]
[1736128770093,0.045572,98769.0,98768.0,0.3608]
[1736128771292,0.045572,98769.0,98768.0,0.96792]
[1736128771788,0.045569,98776.0,98768.0,1.20712]
[1736128771984,0.045569,98776.0,98774.0,0.60712]
[1736128772490,0.045569,98776.0,98774.0,0.84632]
[1736128773685,0.045566,98782.0,98774.0,0.84632]
[1736128773887,0.045567,98780.0,98774.0,0.84632]
[1736128774100,0.045567,98779.0,98774.0,0.84632]
[1736128779197,0.045567,98779.0,98774.0,1.08558697]
[1736128780395,0.045567,98779.0,98774.0,0.84632]
[1736128784305,0.045566,98783.0,98774.0,0.84632]
[1736128784486,0.50060001,98787.0,98774.0,0.84632]
[1736128784487,0.5,98787.0,98774.0,0.84632]
[1736128784694,0.5,98787.0,98774.0,0.96182]
[1736128785100,0.545564,98787.0,98774.0,0.96182]
[1736128785293,0.5,98787.0,98774.0,0.96182]
[1736128785992,0.5,98787.0,98774.0,1.26087687]
[1736128786203,0.5,98787.0,98777.0,0.09832058]
[1736128786393,0.5,98787.0,98786.0,1.013484]
[1736128786800,0.5,98787.0,98786.0,1.252684]
[1736128787998,0.5,98787.0,98786.0,1.4915396]
[1736128789204,0.5,98787.0,98786.0,1.252684]
[1736128793398,0.5,98787.0,98786.0,1.4915396]
[1736128794708,0.1,98800.0,98799.0,0.045558]
[1736128795005,0.1,98800.0,98799.0,1.013478]
[1736128795200,0.1,98800.0,98799.0,1.252678]
[1736128797307,0.1,98800.0,98799.0,0.3608]
[1736128797504,0.045558,98799.0,98797.0,0.1789647]
[1736128797695,0.045558,98799.0,98797.0,0.7860847]
[1736128798304,0.1,98800.0,98798.0,1.013478]
[1736128798899,0.1,98800.0,98798.0,0.96792]
[1736128799103,0.045558,98799.0,98798.0,0.96792]
[1736128799706,0.045558,98799.0,98798.0,1.1468847]
[1736128799908,0.045558,98799.0,98798.0,0.5397647]
[1736128800507,0.1,98800.0,98798.0,1.3860847]
[1736128800699,0.1,98800.0,98799.0,0.60712]
[1736128800904,0.1,98800.0,98798.0,0.5403247]
[1736128801211,0.1,98800.0,98798.0,0.3608]
[1736128802299,0.1,98800.0,98791.0,0.1789647]
[1736128802300,0.045561,98792.0,98791.0,0.1789647]
[1736128802504,0.045562,98790.0,98789.0,0.2386196]
[1736128803218,0.153362,98790.0,98789.0,0.2386196]
[1736128804401,0.045563,98787.0,98784.0,0.17924244]
[1736128804611,0.045564,98785.0,98784.0,0.17924244]
[1736128805301,0.04556,98794.0,98784.0,1.02556244]
[1736128805501,0.04556,98794.0,98788.0,0.3608]
[1736128805708,0.04556,98794.0,98793.0,0.60712]
[1736128810735,0.045561,98792.0,98791.0,0.2386196]
[1736128810917,0.045561,98792.0,98770.0,0.3608]
[1736128811226,0.3608,98794.0,98770.0,0.3608]
[1736128811227,0.045571,98771.0,98770.0,0.3608]
[1736128811522,0.045574,98764.0,98762.0,0.35713763]
[1736128811913,0.045574,98764.0,98763.0,0.60712]
[1736128813421,0.1211101,98770.0,98763.0,0.60712]
[1736128813724,0.1211101,98770.0,98769.0,0.60712]
[1736128814423,0.045574,98766.0,98764.0,0.28937778]
[1736128814614,0.045574,98766.0,98765.0,0.60712]
[1736128815411,0.045574,98766.0,98764.0,0.17937778]
[1736128815619,0.045576,98759.0,98758.0,0.3608]
[1736128815815,0.045575,98762.0,98761.0,0.17935157]
[1736128817731,0.045575,98762.0,98749.0,0.3608]
[1736128817732,0.045581,98750.0,98749.0,0.3608]
[1736128818233,0.045581,98750.0,98749.0,0.96792]
[1736128819021,0.045581,98750.0,98749.0,0.3608]
[1736128819218,0.045584,98743.0,98741.0,0.3608]
[1736128819620,0.045584,98743.0,98742.0,0.60712]
[1736128820525,0.045584,98743.0,98741.0,0.3608]
[1736128821334,0.045587,98736.0,98734.0,0.1123]
[1736128821719,0.045587,98736.0,98735.0,0.60712]
[1736128823925,0.045583,98745.0,98735.0,0.84632]
[1736128824124,0.045582,98746.0,98745.0,0.60712]
[1736128825215,0.00984374,98756.0,98745.0,0.60712]
[1736128825422,0.045582,98746.0,98745.0,0.60712]
[1736128826737,0.04558,98752.0,98745.0,0.891903]
[1736128827029,0.3608,98765.0,98757.0,0.60712]
[1736128827228,0.3608,98765.0,98758.0,0.92412]
[1736128827429,0.045576,98760.0,98758.0,0.92412]
[1736128827824,0.045576,98760.0,98759.0,0.60712]
[1736128828230,0.045576,98760.0,98759.0,0.84632]
[1736128830518,0.045576,98760.0,98758.0,0.317]
[1736128831325,0.045576,98760.0,98759.0,0.60712]
[1736128831530,0.045572,98768.0,98763.0,0.045575]
[1736128831725,0.3608,98790.0,98767.0,0.3608]
[1736128831928,0.01110626,98799.0,98782.0,0.3608]
[1736128832230,0.16635109,98783.0,98782.0,0.3608]
[1736128832425,0.045565,98783.0,98782.0,0.4738]
[1736128844039,0.045565,98783.0,98782.0,0.113]
[1736128845940,0.045572,98768.0,98767.0,0.3608]
[1736128846326,0.045572,98768.0,98767.0,0.96792]
[1736128849633,0.045572,98768.0,98767.0,1.20712]
[1736128849938,0.045568,98778.0,98769.0,0.045572]
[1736128850135,0.13068665,98786.0,98777.0,0.60712]
[1736128850334,0.13068665,98786.0,98779.0,0.60712]
[1736128850335,0.045567,98780.0,98779.0,0.60712]
[1736128858051,0.045567,98780.0,98779.0,0.84632]
[1736128860150,0.50060001,98787.0,98779.0,0.84632]
[1736128860151,0.54616401,98787.0,98779.0,0.84632]
[1736128860346,0.545564,98787.0,98786.0,0.96792]
[1736128860956,0.545564,98787.0,98786.0,1.20712]
[1736128861141,0.1516,98787.0,98786.0,1.252684]
[1736128861347,0.12086526,98794.0,98786.0,1.20712]
[1736128861653,0.1,98800.0,98786.0,1.20712]
[1736128861654,0.1,98800.0,98793.0,0.60712]